fUST/lending_fUST_20250819
["ID","MTS","AMOUNT","RATE_DAILY","PERIOD"]
[380188383,1755599470403,-2157.32,0.00021095,2]
[380188384,1755599470413,-220.87746533,0.00021095,2]
[380188385,1755599470422,-4013.61,0.00021095,2]
[380188386,1755599470432,-803.59,0.00021095,2]
[380188387,1755599470441,-480.0,0.00021095,2]
[380188388,1755599470452,-480.0,0.00021095,2]
[380188389,1755599470462,-480.0,0.00021095,2]
[380188390,1755599470472,-2409.49,0.00021095,2]
[380188391,1755599470482,-189.110511,0.00021095,2]
[380188392,1755599470491,-189.110511,0.00021095,2]
[380188393,1755599470501,-8486.46,0.00021095,2]
[380188394,1755599470510,-480.0,0.00021095,2]
[380188395,1755599470520,-480.0,0.00021095,2]
[380188396,1755599470529,-581.68,0.00021095,2]
[380188397,1755599470539,-1614.69,0.00021095,2]
[380188398,1755599470548,-2954.3,0.00021095,2]
[380188399,1755599470558,-259.250128,0.00021095,2]
[380188400,1755599470567,-480.0,0.00021095,2]
[380188401,1755599470576,-259.250128,0.00021095,2]
[380188402,1755599470587,-205.97658574,0.00021095,2]
[380188403,1755599470596,-480.0,0.00021095,2]
[380188404,1755599470607,-303.968295,0.00021095,2]
[380188405,1755599470616,-971.83,0.00021095,2]
[380188406,1755599470626,-480.0,0.00021095,2]
[380188407,1755599470635,-303.968295,0.00021095,2]
[380188408,1755599470645,-212.52004,0.00021095,2]
[380188409,1755599470654,-480.0,0.00021095,2]
[380188410,1755599470664,-263.71511305,0.00021095,2]
[380188411,1755599470675,-811.56,0.00021095,2]
[380188412,1755599470684,-647.39,0.00021095,2]
[380188413,1755599470693,-536.54,0.00021095,2]
[380188414,1755599470703,-480.0,0.00021095,2]
[380188415,1755599470712,-480.0,0.00021095,2]
[380188416,1755599470722,-491.18,0.00021095,2]
[380188417,1755599470731,-998.9,0.00021095,2]
[380188418,1755599470742,-480.0,0.00021095,2]
[380188419,1755599470752,-663.34,0.00021095,2]
[380188420,1755599470762,-465.62496256,0.00021095,2]
[380188421,1755599470771,-487.43269474,0.00021095,2]
[380188422,1755599470780,-2351.56,0.00021095,2]
[380188423,1755599470790,-2029.9,0.00021095,2]
[380188424,1755599470799,-480.0,0.00021095,2]
[380188425,1755599470808,-480.0,0.00021095,2]
[380188426,1755599470817,-6382.68552961,0.00021095,2]
[380188427,1755599471204,5000.0,0.00019044,2]
[380188428,1755599471269,-480.0,0.00019178,2]
[380188429,1755599471280,-472.77088574,0.00019178,2]
[380188430,1755599471290,-480.0,0.00019178,2]
[380188431,1755599471299,-480.0,0.00019452,2]
[380188432,1755599471309,-480.0,0.00019452,2]
[380188433,1755599471318,-480.0,0.00019726,2]
[380188434,1755599471330,-480.0,0.00019726,2]
[380188435,1755599471340,-924.93447039,0.00021095,2]
[380188436,1755599471350,-480.0,0.00021095,2]
[380188437,1755599471359,-847.07,0.00021095,2]
[380188438,1755599471369,-826.51,0.00021095,2]
[380188439,1755599471378,-480.0,0.00021095,2]
[380188440,1755599471388,-5360.43,0.00021095,2]
[380188441,1755599471397,-480.0,0.00021095,2]
[380188442,1755599471408,-480.0,0.00021095,2]
[380188443,1755599471417,-510.7,0.00021095,2]
[380188444,1755599471426,-151.0,0.000211,4]
[380188445,1755599471435,-256.0,0.00021101,2]
[380188446,1755599471445,-295.58902444,0.00021105,2]
[380188447,1755599471454,-295.58902444,0.00021105,2]
[380188448,1755599471464,-199.455088,0.00021116,2]
[380188449,1755599471474,-199.455088,0.00021116,2]
[380188450,1755599471483,-182.075042,0.00021116,2]
[380188451,1755599471493,-182.075042,0.00021116,2]
[380188452,1755599471502,-151.0,0.00021116,2]
[380188453,1755599471511,-151.0,0.00021116,2]
[380188454,1755599471521,-2000.0,0.00021116,2]
[380188455,1755599471532,-2000.0,0.00021116,2]
[380188456,1755599471541,-5301.39970514,0.00021138,2]
[380188457,1755599471550,-256.0,0.00021285,2]
[380188458,1755599471559,-500.0,0.00021286,2]
[380188459,1755599471568,-500.0,0.00021286,2]
[380188460,1755599471579,-501.36665159,0.00021286,2]
[380188461,1755599471591,-256.0,0.0002131,2]
[380188462,1755599471600,-480.0,0.00021342,2]
[380188463,1755599471609,-2937.52,0.00021342,2]
[380188464,1755599471619,-360.0,0.0002135,2]
[380188465,1755599471628,-256.0,0.00021369,2]
[380188466,1755599471639,-480.0,0.00021369,2]
[380188467,1755599471649,-151.833911,0.00021369,2]
[380188468,1755599471659,-151.0,0.00021369,2]
[380188469,1755599471670,-151.0,0.00021369,2]
[380188470,1755599471680,-151.0,0.00021369,2]
[380188471,1755599471689,-151.0,0.00021369,2]
[380188472,1755599471699,-480.0,0.00021369,2]
[380188473,1755599471708,-480.0,0.00021369,2]
[380188474,1755599471717,-480.0,0.00021369,2]
[380188475,1755599471727,-620.71517411,0.00021369,2]
[380188476,1755599471737,-151.0,0.00021369,2]
[380188477,1755599471746,-480.0,0.00021369,2]
[380188478,1755599471756,-480.0,0.00021369,2]
[380188479,1755599471765,-1102.56,0.00021369,2]
[380188480,1755599471774,-480.0,0.00021369,2]
[380188481,1755599471783,-480.0,0.00021369,2]
[380188482,1755599471792,-480.0,0.00021369,2]
[380188483,1755599471801,-480.0,0.00021369,2]
[380188484,1755599471810,-503.29,0.00021369,2]
[380188485,1755599471821,-152.364324,0.00021369,2]
[380188486,1755599471830,-480.0,0.00021369,2]
[380188487,1755599471839,-480.0,0.00021369,2]
[380188488,1755599471848,-841.75,0.00021369,2]
[380188489,1755599471857,-784.06,0.00021369,2]
[380188490,1755599471866,-248.108334,0.00021369,2]
[380188491,1755599471876,-480.0,0.00021369,2]
[380188492,1755599471885,-1299.55,0.00021369,2]
[380188493,1755599471894,-248.108334,0.00021369,2]
[380188494,1755599471904,-792.02,0.00021369,2]
[380188495,1755599471913,-151.0,0.00021369,2]
[380188496,1755599471922,-480.0,0.00021369,2]
[380188497,1755599471931,-480.0,0.00021369,2]
[380188498,1755599471940,-480.0,0.00021369,2]
[380188499,1755599471949,-480.0,0.00021369,2]
[380188500,1755599471958,-489.16,0.00021369,2]
[380188501,1755599471967,-480.0,0.00021369,2]
[380188502,1755599471976,-795.9,0.00021369,2]
[380188503,1755599471985,-480.0,0.00021369,2]
[380188504,1755599471994,-480.0,0.00021369,2]
[380188505,1755599472004,-480.0,0.00021369,2]
[380188506,1755599472013,-480.0,0.00021369,2]
[380188507,1755599472023,-480.0,0.00021369,2]
[380188508,1755599472032,-480.0,0.00021369,2]
[380188509,1755599472041,-480.0,0.00021369,2]
[380188510,1755599472050,-589.87,0.00021369,2]
[380188511,1755599472060,-480.0,0.00021369,2]
[380188512,1755599472069,-777.32,0.00021369,2]
[380188513,1755599472078,-865.92,0.00021369,2]
[380188514,1755599472087,-1593.85,0.00021369,2]
[380188515,1755599472096,-565.05,0.00021369,2]
[380188516,1755599472106,-480.0,0.00021369,2]
[380188517,1755599472115,-480.0,0.00021369,2]
[380188518,1755599472124,-480.0,0.00021369,2]
[380188519,1755599472134,-900.2,0.00021369,2]
[380188520,1755599472143,-480.0,0.00021369,2]
[380188521,1755599472153,-718.91,0.00021369,2]
[380188522,1755599472162,-599.35,0.00021369,2]
[380188523,1755599472171,-480.0,0.00021369,2]
[380188524,1755599472180,-480.0,0.00021369,2]
[380188525,1755599472189,-2530.76,0.00021369,2]
[380188526,1755599472198,-505.96,0.00021369,2]
[380188527,1755599472207,-1065.73,0.00021369,2]
[380188528,1755599472216,-480.0,0.00021369,2]
[380188529,1755599472226,-480.0,0.00021369,2]
[380188530,1755599472235,-679.49,0.00021369,2]
[380188531,1755599472244,-663.9,0.00021369,2]
[380188532,1755599472253,-386.94380161,0.00021369,2]
[380188533,1755599472263,-534.14,0.00021369,2]
[380188534,1755599472272,-480.0,0.00021369,2]
[380188535,1755599472281,-1373.91,0.00021369,2]
[380188536,1755599472290,-1581.88,0.00021369,2]
[380188537,1755599472299,-480.0,0.00021369,2]
[380188538,1755599472308,-480.0,0.00021369,2]
[380188539,1755599472317,-904.4,0.00021369,2]
[380188540,1755599472327,-1514.26,0.00021369,2]
[380188541,1755599472337,-1611.44,0.00021369,2]
[380188542,1755599472347,-1044.84,0.00021369,2]
[380188543,1755599472357,-480.0,0.00021369,2]
[380188544,1755599472367,-783.38,0.00021369,2]
[380188545,1755599472376,-876.6,0.00021369,2]
[380188546,1755599472387,-1209.1,0.00021369,2]
[380188547,1755599472396,-611.3,0.00021369,2]
[380188548,1755599472406,-623.99,0.00021369,2]
[380188549,1755599472415,-826.52,0.00021369,2]
[380188550,1755599472424,-897.57,0.00021369,2]
[380188551,1755599472434,-480.0,0.00021369,2]
[380188552,1755599472443,-557.74,0.00021369,2]
[380188553,1755599472452,-480.0,0.00021369,2]
[380188554,1755599472462,-480.0,0.00021369,2]
[380188555,1755599472471,-480.0,0.00021369,2]
[380188556,1755599472545,-480.0,0.00021369,2]
[380188557,1755599472560,-480.0,0.00021369,2]
[380188558,1755599472569,-339.44982001,0.00021369,2]
[380188559,1755599472578,-2157.32,0.00021369,2]
[380188560,1755599472591,-4013.61,0.00021369,2]
[380188561,1755599472601,-803.59,0.00021369,2]
[380188562,1755599472610,-480.0,0.00021369,2]
[380188563,1755599472619,-2409.49,0.00021369,2]
[380188564,1755599472630,-8486.46,0.00021369,2]
[380188565,1755599472639,-480.0,0.00021369,2]
[380188566,1755599472649,-480.0,0.00021369,2]
[380188567,1755599472659,-581.68,0.00021369,2]
[380188568,1755599472669,-501.61785948,0.00021369,2]
[380188569,1755599472683,-632.771719,0.00021369,2]
[380188570,1755599473038,-480.0,0.00019178,2]
[380188571,1755599473048,-177.84928219,0.00019178,2]
[380188572,1755599473058,-302.15071781,0.00019178,2]
[380188573,1755599473068,-480.0,0.00019178,2]
[380188574,1755599473077,-251.8578159,0.00019178,2]
[380188575,1755599473088,-228.1421841,0.00019178,2]
[380188576,1755599473097,-480.0,0.00019178,2]
[380188577,1755599473106,-480.0,0.00019452,2]
[380188578,1755599473115,-480.0,0.00019452,2]
[380188579,1755599473126,-480.0,0.00019452,2]
[380188580,1755599473135,-480.0,0.00019452,2]
[380188581,1755599473143,-480.0,0.00019726,2]
[380188582,1755599473153,-196.86507064,0.00019726,2]
[380188583,1755599473164,-480.0,0.0002,2]
[380188584,1755599473174,-480.30042152,0.00021369,2]
[380188585,1755599473183,-2954.3,0.00021369,2]
[380188586,1755599473192,-480.0,0.00021369,2]
[380188587,1755599473201,-480.0,0.00021369,2]
[380188588,1755599473211,-303.968295,0.00021369,2]
[380188589,1755599473220,-971.83,0.00021369,2]
[380188590,1755599473229,-480.0,0.00021369,2]
[380188591,1755599473238,-303.968295,0.00021369,2]
[380188592,1755599473248,-480.0,0.00021369,2]
[380188593,1755599473257,-811.56,0.00021369,2]
[380188594,1755599473266,-536.54,0.00021369,2]
[380188595,1755599473275,-647.39,0.00021369,2]
[380188596,1755599473286,-480.0,0.00021369,2]
[380188597,1755599473296,-480.0,0.00021369,2]
[380188598,1755599473306,-491.18,0.00021369,2]
[380188599,1755599473315,-480.0,0.00021369,2]
[380188600,1755599473332,-663.34,0.00021369,2]
[380188601,1755599473341,-2351.56,0.00021369,2]
[380188602,1755599473350,-2029.9,0.00021369,2]
[380188603,1755599473359,-480.0,0.00021369,2]
[380188604,1755599473369,-7307.62,0.00021369,2]
[380188605,1755599473378,-480.0,0.00021369,2]
[380188606,1755599473388,-847.07,0.00021369,2]
[380188607,1755599473396,-826.51,0.00021369,2]
[380188608,1755599473406,-480.0,0.00021369,2]
[380188609,1755599473415,-5360.43,0.00021369,2]
[380188610,1755599473424,-151.0,0.00021369,2]
[380188611,1755599473433,-480.0,0.00021369,2]
[380188612,1755599473442,-480.0,0.00021369,2]
[380188613,1755599473451,-510.7,0.00021369,2]
[380188614,1755599473460,-151.0,0.0002137,2]
[380188615,1755599473469,-151.0,0.0002137,2]
[380188616,1755599473479,-151.24868481,0.0002137,2]
[380188617,1755599473489,-151.0,0.0002137,2]
[380188618,1755599473497,-151.0,0.0002137,2]
[380188619,1755599473507,-151.0,0.0002137,2]
[380188620,1755599473516,-151.0,0.0002137,2]
[380188621,1755599473525,-151.0,0.0002137,2]
[380188622,1755599473534,-151.0,0.0002137,2]
[380188623,1755599473545,-151.0,0.0002137,2]
[380188624,1755599473553,-151.0,0.0002137,2]
[380188625,1755599473562,-151.0,0.0002137,2]
[380188626,1755599473572,-151.0,0.0002137,2]
[380188627,1755599473581,-151.0,0.0002137,2]
[380188628,1755599473595,-500.0,0.0002137,2]
[380188629,1755599473604,-151.0,0.0002137,2]
[380188630,1755599473614,-151.0,0.0002137,2]
[380188631,1755599473623,-151.0,0.0002137,2]
[380188632,1755599473633,-151.0,0.0002137,2]
[380188633,1755599473642,-151.39409377,0.0002137,2]
[380188634,1755599473651,-151.9927141,0.00021403,2]
[380188635,1755599473662,-722.4345052,0.00021418,2]
[380188636,1755599473671,-178.2630597,0.00021418,2]
[380188637,1755599473680,-195.151139,0.00021418,2]
[380188638,1755599473690,-256.0,0.00021439,2]
[380188639,1755599473699,-168.0,0.00021477,2]
[380188640,1755599473708,-200.64749103,0.000215,2]
[380188641,1755599473718,-720.0,0.00021517,20]
[380188642,1755599473727,-2298.17893873,0.00021551,2]
[380188643,1755599473740,-362.74622389,0.00021551,2]
[380188644,1755599473752,-2640.47454252,0.00021551,2]
[380188645,1755599473761,-151.0,0.000216,2]
[380188646,1755599473770,-151.0,0.000216,2]
[380188647,1755599473849,-322.947487,0.000216,2]
[380188648,1755599473859,-322.947487,0.000216,2]
[380188649,1755599473868,-189.110511,0.000216,2]
[380188650,1755599473877,-189.110511,0.000216,2]
[380188651,1755599473887,-135.56017929,0.000216,2]
[380188652,1755599473898,-123.68994871,0.000216,2]
[380188653,1755599473909,-259.250128,0.000216,2]
[380188654,1755599473918,-4261.61359521,0.000216,2]
[380188655,1755599473928,-12637.7,0.000216,2]
[380188656,1755599473939,-5433.2,0.000216,2]
[380188657,1755599474037,-421.17699073,0.00019178,2]
[380188658,1755599474047,-480.0,0.00019178,2]
[380188659,1755599474058,-70.82300927,0.00019178,2]
[380188660,1755599474168,5000.0,0.00019079,2]
[380188661,1755599474314,159.36031583,0.00019077,2]
[380188662,1755599475560,500.0,0.0001863,2]
[380188663,1755599475753,4340.63968417,0.00019078,2]
[380188664,1755599475778,5000.0,0.00019078,2]
[380188665,1755599475800,2693.95807917,0.00019078,2]
[380188666,1755599479522,2306.04192083,0.00019079,2]
[380188667,1755599479545,2693.95807917,0.00019079,2]
[380188668,1755599487382,2306.04192083,0.00019079,2]
[380188669,1755599487406,2693.95807917,0.00019079,2]
[380188670,1755599496765,900.89329063,0.00019079,2]
[380188671,1755599502857,395.90278677,0.00018995,2]
[380188672,1755599505566,1009.24584343,0.00019079,2]
[380188673,1755599505594,3990.75415657,0.00019079,2]
[380188674,1755599521454,1009.24584343,0.00019079,2]
[380188675,1755599521483,3990.75415657,0.00019079,2]
[380188676,1755599522556,210.72148875,0.00019073,2]
[380188680,1755599536978,798.52435468,0.00019079,2]
[380188681,1755599537000,4201.47564532,0.00019079,2]
[380188682,1755599546122,179.69085456,0.00019072,2]
[380188683,1755599553131,618.83350012,0.00019079,2]
[380188684,1755599553155,4381.16649988,0.00019079,2]
[380188685,1755599569656,618.83350012,0.00019079,2]
[380188686,1755599569680,4381.16649988,0.00019079,2]
[380188687,1755599571930,618.83350012,0.00018978,2]
[380188688,1755599571952,5000.0,0.00018978,2]
[380188689,1755599571974,5000.0,0.00018978,2]
[380188690,1755599571996,5000.0,0.00018978,2]
[380188691,1755599572019,5000.0,0.00018978,2]
[380188692,1755599572040,5000.0,0.00018978,2]
[380188693,1755599572062,5000.0,0.00018978,2]
[380188694,1755599572084,5000.0,0.00018978,2]
[380188695,1755599572105,5000.0,0.00018978,2]
[380188696,1755599572126,5000.0,0.00018978,2]
[380188697,1755599572148,5000.0,0.00018978,2]
[380188698,1755599572169,5000.0,0.00018978,2]
[380188699,1755599572322,5000.0,0.00018978,2]
[380188700,1755599572347,5000.0,0.00018978,2]
[380188701,1755599572369,5000.0,0.00018978,2]
[380188702,1755599572391,5000.0,0.00018978,2]
[380188703,1755599572414,5000.0,0.00018978,2]
[380188704,1755599572440,5000.0,0.00018978,2]
[380188705,1755599572468,5000.0,0.00018978,2]
[380188706,1755599572490,5000.0,0.00018978,2]
[380188707,1755599572511,5000.0,0.00018978,2]
[380188708,1755599572533,513.80934419,0.00018978,2]
[380188709,1755599581702,4486.19065581,0.00018371,2]
[380188710,1755599581723,519.85893229,0.00018371,2]
[380188711,1755599582099,165.82743948,0.00018978,2]
[380188712,1755599584954,329.594678,0.00013699,2]
[380188713,1755599585101,3984.71895023,0.00019079,2]
[380188714,1755599585124,1015.28104977,0.00019079,2]
[380188715,1755599600775,3984.71895023,0.00019079,2]
[380188716,1755599600800,1015.28104977,0.00019079,2]
[380188717,1755599617179,3984.71895023,0.00019079,2]
[380188718,1755599617202,1015.28104977,0.00019079,2]
[380188719,1755599633286,3984.71895023,0.00019079,2]
[380188720,1755599633310,1015.28104977,0.00019079,2]
[380188721,1755599650201,3984.71895023,0.00019079,2]
[380188722,1755599650223,1015.28104977,0.00019079,2]
[380188723,1755599653094,480.0,0.00027945,120]
[380188724,1755599657277,1000.0,0.00019078,2]
[380188725,1755599665834,2984.71895023,0.00019079,2]
[380188726,1755599665858,2015.28104977,0.00019079,2]
[380188727,1755599684075,2984.71895023,0.00019079,2]
[380188728,1755599684099,2015.28104977,0.00019079,2]
[380188729,1755599689047,1000.0,0.00018356,2]
[380188730,1755599699600,1984.71895023,0.00019079,2]
[380188731,1755599699623,3015.28104977,0.00019079,2]
[380188732,1755599702623,1538.76017816,0.00019078,2]
[380188733,1755599715159,445.95877207,0.00019079,2]
[380188734,1755599715184,4554.04122793,0.00019079,2]
[380188735,1755599732037,445.95877207,0.00019079,2]
[380188736,1755599732060,4554.04122793,0.00019079,2]
[380188737,1755599734125,445.95877207,0.00019078,2]
[380188738,1755599734152,5000.0,0.00019078,2]
[380188739,1755599734178,5000.0,0.00019078,2]
[380188740,1755599734205,5000.0,0.00019078,2]
[380188741,1755599734233,5000.0,0.00019078,2]
[380188742,1755599734281,5000.0,0.00019078,2]
[380188743,1755599734318,5000.0,0.00019078,2]
[380188744,1755599734354,5000.0,0.00019078,2]
[380188745,1755599734379,5000.0,0.00019078,2]
[380188746,1755599734403,5000.0,0.00019078,2]
[380188747,1755599734426,5000.0,0.00019078,2]
[380188748,1755599734449,5000.0,0.00019078,2]
[380188749,1755599734473,5000.0,0.00019078,2]
[380188750,1755599734496,5000.0,0.00019078,2]
[380188751,1755599734519,5000.0,0.00019078,2]
[380188752,1755599734543,5000.0,0.00019078,2]
[380188753,1755599734565,5000.0,0.00019078,2]
[380188754,1755599734587,5000.0,0.00019078,2]
[380188755,1755599734612,5000.0,0.00019078,2]
[380188756,1755599734636,5000.0,0.00019078,2]
[380188757,1755599734660,5000.0,0.00019078,2]
[380188758,1755599734682,5000.0,0.00019078,2]
[380188759,1755599734707,5000.0,0.00019078,2]
[380188760,1755599734731,467.78221963,0.00019078,2]
[380188761,1755599740653,296.84195414,0.00019079,2]
[380188762,1755599745359,894.96228092,0.00019072,2]
[380188763,1755599749033,3340.41354531,0.00019079,2]
[380188764,1755599749056,1659.58645469,0.00019079,2]
[380188765,1755599764984,3340.41354531,0.00019079,2]
[380188766,1755599765011,1659.58645469,0.00019079,2]
[380188767,1755599766998,3340.41354531,0.00019073,2]
[380188768,1755599767021,5000.0,0.00019073,2]
[380188769,1755599767043,5000.0,0.00019073,2]
[380188770,1755599767065,5000.0,0.00019073,2]
[380188771,1755599767087,5000.0,0.00019073,2]
[380188772,1755599767109,5000.0,0.00019073,2]
[380188773,1755599767131,5000.0,0.00019073,2]
[380188774,1755599767153,5000.0,0.00019073,2]
[380188775,1755599767176,2436.47312367,0.00019073,2]
[380188776,1755599780311,2563.52687633,0.00019079,2]
[380188777,1755599780334,2436.47312367,0.00019079,2]
[380188778,1755599782855,221.27896971,0.00019078,2]
[380188779,1755599795702,2342.24790662,0.00019079,2]
[380188780,1755599795725,2657.75209338,0.00019079,2]
[380188781,1755599804456,353.35155361,0.00018995,2]
[380188782,1755599812472,1988.89635301,0.00019079,2]
[380188783,1755599812494,3011.10364699,0.00019079,2]
[380188784,1755599823740,1988.89635301,0.00018355,2]
[380188785,1755599823762,5000.0,0.00018355,2]
[380188786,1755599823789,3011.10364699,0.00018355,2]
[380188787,1755599824070,6716.0,0.00028767,120]
[380188788,1755599828339,1988.89635301,0.00019079,2]
[380188789,1755599828363,3011.10364699,0.00019079,2]
[380188790,1755599831034,300.0,0.00018783,2]
[380188791,1755599842558,1287.500001,0.00018326,2]
[380188792,1755599844021,401.39635201,0.00019079,2]
[380188793,1755599844044,4598.60364799,0.00019079,2]
[380188794,1755599859614,401.39635201,0.00019079,2]
[380188795,1755599859637,4598.60364799,0.00019079,2]
[380188796,1755599862250,401.39635201,0.00019077,2]
[380188797,1755599862271,473.57770219,0.00019077,2]
[380188798,1755599866078,3080.5913731,0.00018326,2]
[380188799,1755599875212,1445.83092471,0.00019079,2]
[380188800,1755599875235,3554.16907529,0.00019079,2]
[380188801,1755599891697,1445.83092471,0.00019072,2]
[380188802,1755599891719,4943.51672548,0.00019072,2]
[380188803,1755599892436,56.48327452,0.00019079,2]
[380188804,1755599892460,4943.51672548,0.00019079,2]
[380188805,1755599902425,56.48327452,0.00018355,2]
[380188806,1755599902454,943.51672548,0.00018355,2]
[380188807,1755599909805,4056.48327452,0.00019079,2]
[380188808,1755599909830,943.51672548,0.00019079,2]
[380188809,1755599911106,1429.05222002,0.00019078,2]
[380188810,1755599925380,2627.4310545,0.00019079,2]
[380188811,1755599925405,2372.5689455,0.00019079,2]
[380188812,1755599940760,2627.4310545,0.00019079,2]
[380188813,1755599940783,2372.5689455,0.00019079,2]
[380188814,1755599959582,2627.4310545,0.00019079,2]
[380188815,1755599959607,2372.5689455,0.00019079,2]
[380188816,1755599975112,2627.4310545,0.00019079,2]
[380188817,1755599975135,2372.5689455,0.00019079,2]
[380188818,1755599992374,2627.4310545,0.00019079,2]
[380188819,1755599992396,2372.5689455,0.00019079,2]
[380188820,1755600008318,2627.4310545,0.00019079,2]
[380188821,1755600008342,2372.5689455,0.00019079,2]
[380188822,1755600024295,2627.4310545,0.00019079,2]
[380188823,1755600024319,2372.5689455,0.00019079,2]
[380188824,1755600041469,2627.4310545,0.00019079,2]
[380188825,1755600041491,1598.72269382,0.00019079,2]
[380188826,1755600044186,585.31892363,0.00019073,2]
[380188835,1755600106345,235.56770241,0.00018995,2]
[380188836,1755600107145,190.68080245,0.00019078,2]
[380188837,1755600121332,1322.72812364,0.00019078,2]
[380188838,1755600179554,1000.0,0.00019078,2]
[380188839,1755600204683,66.98175405,0.00019078,2]
[380188840,1755600204706,2799.74275747,0.00019078,2]
[380188841,1755600210719,1412.1552826,0.00018179,2]
[380188843,1755600329591,178.342457,0.00018391,2]
[380188844,1755600329809,178.342457,0.00018391,120]
[380188845,1755600337319,609.75950293,0.00019078,2]
[380188846,1755600337342,610.89660752,0.00019078,2]
[380188847,1755600407590,284.17442653,0.000189,2]
[380188848,1755600425466,1033.02625736,0.00018603,2]
[380188849,1755600426097,-463.32,0.00019168,3]
[380188850,1755600426117,-231.66,0.00019168,3]
[380188851,1755600426137,-694.99,0.00019168,3]
[380188852,1755600426157,-125.65573893,0.00019175,2]
[380188853,1755600426184,-174.34426107,0.00019175,2]
[380188854,1755600426210,-113.41498713,0.00019175,2]
[380188855,1755600439826,167.79910614,0.00019078,2]
[380188856,1755600476749,2904.10360245,0.00018268,2]
[380188857,1755600476770,5000.0,0.00018268,2]
[380188858,1755600476791,5000.0,0.00018268,2]
[380188859,1755600476812,5000.0,0.00018268,2]
[380188860,1755600476834,5000.0,0.00018268,2]
[380188861,1755600476855,5000.0,0.00018268,2]
[380188862,1755600476876,5000.0,0.00018268,2]
[380188863,1755600476896,5000.0,0.00018268,2]
[380188864,1755600476918,5000.0,0.00018268,2]
[380188865,1755600476938,5000.0,0.00018268,2]
[380188866,1755600477075,2382.62578455,0.00018268,2]
[380188867,1755600494734,2617.37421545,0.00019078,2]
[380188868,1755600494759,797.20879397,0.00019078,2]
[380188870,1755600514020,425.1516807,0.00018224,2]
[380188871,1755600542579,1123.43447356,0.00019078,2]
[380188875,1755600600602,2654.20505177,0.00019078,2]
[380188876,1755600600624,1530.60759626,0.00019078,2]
[380188891,1755600632511,-1053.86682041,0.00019176,2]
[380189026,1755600638572,-146.13317959,0.00019176,2]
[380189028,1755600638582,-354.66558914,0.00019177,2]
[380189030,1755600638594,-470.895,0.00019177,2]
[380189032,1755600638605,-374.43941086,0.00019177,2]
[380189034,1755600638615,-300.0,0.00019177,2]
[380189036,1755600638624,-419.97058914,0.00019177,2]
[380189039,1755600638644,-80.02941086,0.00019177,2]
[380189041,1755600638653,-604.9815175,0.00019177,2]
[380189043,1755600638662,-500.0,0.00019177,2]
[380189045,1755600638671,-480.0,0.00019178,2]
[380189046,1755600638683,-421.41100767,0.00019178,2]
[380189049,1755600638693,-480.0,0.00019178,2]
[380189051,1755600638702,-420.0,0.00019178,2]
[380189053,1755600638711,-480.0,0.00019178,2]
[380189055,1755600638721,-485.0246964,0.00019178,2]
[380189057,1755600638730,-481.42346326,0.00019178,2]
[380189059,1755600638739,-480.0,0.00019178,2]
[380189061,1755600638749,-480.0,0.00019178,2]
[380189063,1755600638759,-480.0,0.00019178,2]
[380189065,1755600638768,-480.0,0.00019178,2]
[380189067,1755600638778,-480.0,0.00019178,2]